bitfinex/quotes_ETHUSD_20230111
["timestamp","ask_amount","ask_price","bid_price","bid_amount"]
[1673432938386,3.73265904,1336.1,1336.0,2.55331494]
[1673432938597,3.73265904,1336.1,1336.0,2.49042855]
[1673432939208,3.73265904,1336.1,1336.0,9.97544855]
[1673432939399,3.73265904,1336.1,1336.0,10.03833494]
[1673432940387,3.73265904,1336.1,1336.0,17.52335494]
[1673432940694,3.73265904,1336.1,1336.0,10.03833494]
[1673432942339,3.73265904,1336.1,1336.0,17.52335494]
[1673432942992,3.73265904,1336.1,1336.0,25.00837494]
[1673432945068,3.73265904,1336.1,1336.0,17.52335494]
[1673432945714,3.73265904,1336.1,1336.0,18.64588761]
[1673432948838,3.73265904,1336.1,1336.0,3.67584761]
[1673432949059,3.7288225,1336.1,1336.0,2.49042855]
[1673432949273,14.35584825,1336.1,1336.0,0.63322294]
[1673432949535,14.42184825,1336.1,1336.0,0.63322294]
[1673432949694,30.51903187,1336.1,1336.0,0.63322294]
[1673432949904,13.31850382,1336.1,1336.0,0.63322294]
[1673432950686,13.31850382,1336.1,1336.0,0.63044923]
[1673432950687,31.38714831,1336.1,1336.0,0.63044923]
[1673432951486,29.6249985,1336.1,1336.0,0.63044923]
[1673432952378,30.26566122,1336.1,1336.0,0.63044923]
[1673432952545,30.28003571,1336.1,1336.0,0.63044923]
[1673432954125,28.04200854,1336.1,1336.0,0.63044923]
[1673432955053,32.45413604,1336.1,1336.0,0.63044923]
[1673432956053,33.57238781,1336.1,1336.0,0.63044923]
[1673432956418,32.45413604,1336.1,1336.0,0.63044923]
[1673432956677,33.5723818,1336.1,1336.0,0.63044923]
[1673432956874,33.57237063,1336.1,1336.0,0.63044923]
[1673432957255,33.57224598,1336.1,1336.0,0.63044923]
[1673432957938,29.16011848,1336.1,1336.0,0.63044923]
[1673432958846,26.66011848,1336.1,1336.0,0.63044923]
[1673432964770,24.98226079,1336.1,1336.0,0.63044923]
[1673432965084,26.66011848,1336.1,1336.0,0.63044923]
[1673432965426,24.98226079,1336.1,1336.0,0.63044923]
[1673432967000,26.66011848,1336.1,1336.0,0.63044923]
[1673432967160,24.98226079,1336.1,1336.0,0.63044923]
[1673432968367,23.29726079,1336.1,1336.0,0.63044923]
[1673432970464,29.38724598,1336.1,1336.0,0.63044923]
[1673432971212,29.38724598,1336.1,1335.8,22.51831639]
[1673432971213,29.38724598,1336.1,1335.8,32.12111528]
[1673432971394,8.21366064,1336.0,1335.8,32.12111528]
[1673432971667,3.79766064,1335.9,1335.8,32.12111528]
[1673432971941,2.04639609,1335.9,1335.8,33.9785508]
[1673432972154,2.04639609,1335.9,1335.8,19.0068208]
[1673432972671,2.04639609,1335.9,1335.8,9.9912208]
[1673432973497,2.04639609,1335.9,1335.8,17.4773708]
[1673432978476,2.04639609,1335.9,1335.8,24.9635208]
[1673432985406,2.04639609,1335.9,1335.8,26.08605347]
[1673432991481,3.16450603,1335.9,1335.8,26.08605347]
[1673432991886,3.16650603,1335.9,1335.8,26.08405347]
[1673432992098,3.16450603,1335.9,1335.8,26.08605347]
[1673432994979,2.04639609,1335.9,1335.8,26.08605347]
[1673432995511,3.16450603,1335.9,1335.8,26.08605347]
[1673432995722,2.04639609,1335.9,1335.8,26.08605347]
[1673432997074,3.16450603,1335.9,1335.8,26.08605347]
[1673432997399,2.04639609,1335.9,1335.8,26.08605347]
[1673433002092,2.04639609,1335.9,1335.8,27.7676068]
[1673433002956,2.04639609,1335.9,1335.8,26.08605347]
[1673433003768,2.04639609,1335.9,1335.8,27.7676068]
[1673433008966,2.04639609,1335.9,1335.8,26.64507413]
[1673433009291,2.04639609,1335.9,1335.8,27.76781337]
[1673433009967,2.04639609,1335.9,1335.8,27.76782009]
[1673433010640,2.04639609,1335.9,1335.8,26.64507413]
[1673433011434,2.04639609,1335.9,1335.8,27.7678049]
[1673433011645,2.04639609,1335.9,1335.8,20.2816549]
[1673433015804,2.04639609,1335.9,1335.8,11.11395157]
[1673433016109,4.54639609,1335.9,1335.8,11.11395157]
[1673433016907,2.04639609,1335.9,1335.8,11.11395157]
[1673433017841,2.04639609,1335.9,1335.8,18.60010157]
[1673433018091,5.66450603,1335.9,1335.8,3.62825157]
[1673433018308,7.41050603,1335.9,1335.8,3.56536518]
[1673433018495,16.31139115,1335.9,1335.8,2.44263441]
[1673433018713,19.11024564,1335.9,1335.8,0.58206502]
[1673433019111,26.59583564,1335.9,1335.8,0.58206502]
[1673433019311,20.78724564,1335.9,1335.6,1.68868193]
[1673433019524,1.676,1335.7,1335.6,1.68868193]
[1673433019763,5.47366064,1335.7,1335.6,3.54641427]
[1673433020092,5.76966064,1335.7,1335.6,3.54641427]
[1673433020677,5.76966064,1335.7,1335.6,2.4236835]
[1673433021099,5.76966064,1335.7,1335.6,3.54641427]
[1673433021438,5.76966064,1335.7,1335.6,2.4236835]
[1673433023408,5.76966064,1335.7,1335.6,17.3982235]
[1673433023618,5.76966064,1335.7,1335.6,17.46110989]
[1673433024043,5.76966064,1335.7,1335.6,9.97383989]
[1673433024481,3.78810186,1335.7,1335.6,9.97383989]
[1673433024695,5.40910186,1335.7,1335.6,24.94837989]
[1673433024886,5.47510186,1335.7,1335.6,28.85686533]
[1673433025307,5.47510186,1335.7,1335.6,30.53841866]
[1673433025561,5.47510186,1335.7,1335.6,28.85686533]
[1673433026294,5.47510186,1335.7,1335.6,21.36959533]
[1673433026689,5.47510186,1335.7,1335.6,26.07111066]
[1673433026896,5.47510186,1335.7,1335.6,28.85686533]
[1673433027347,5.47510186,1335.7,1335.6,21.36959533]
[1673433027517,5.47510186,1335.7,1335.6,18.58384066]
[1673433027721,3.78810186,1335.7,1335.6,11.09657066]
[1673433027930,3.72210186,1335.7,1335.6,11.09657066]
[1673433028776,3.72210186,1335.7,1335.6,26.07111066]
[1673433028982,0.23,1335.7,1335.6,35.54823459]
[1673433029228,27.39661732,1335.8,1335.6,28.05926768]
[1673433029455,27.39661732,1335.8,1335.7,1.85773234]
[1673433029456,31.19427796,1335.8,1335.7,1.85773234]
[1673433030812,31.42427796,1335.8,1335.7,1.85773234]
[1673433032345,31.42427796,1335.8,1335.6,1.74987141]
[1673433032554,0.23,1335.7,1335.6,5.53862251]
[1673433032794,0.23,1335.7,1335.6,14.94641335]
[1673433033023,0.23,1335.7,1335.6,7.45914335]
[1673433034270,0.23,1335.7,1335.6,3.60750586]
[1673433034484,0.23,1335.7,1335.6,3.54461947]
[1673433034669,4.02766064,1335.7,1335.6,3.54461947]
[1673433036585,4.02766064,1335.7,1335.6,2.42358561]
[1673433038654,4.02766064,1335.7,1335.6,3.54461947]
[1673433038915,4.02766064,1335.7,1335.6,2.42358561]
[1673433039088,4.02766064,1335.7,1335.6,3.54461947]
[1673433039285,4.02966064,1335.7,1335.6,2.42358561]
[1673433039495,4.02766064,1335.7,1335.6,2.42358561]
[1673433039748,4.02766064,1335.7,1335.6,3.54461947]
[1673433041609,4.02766064,1335.7,1335.6,2.42358561]
[1673433042166,4.02766064,1335.7,1335.6,9.91085561]
[1673433042369,4.02766064,1335.7,1335.6,9.973742]
[1673433043171,4.02766064,1335.7,1335.6,11.09477586]
[1673433044048,4.02766064,1335.7,1335.6,9.973742]
[1673433044273,4.02766064,1335.7,1335.6,11.09477586]
[1673433044433,2.04614813,1335.7,1335.6,11.09477586]
[1673433045852,2.04614813,1335.7,1335.6,3.60750586]
[1673433046059,2.04614813,1335.7,1335.6,3.54461947]
[1673433046226,2.04614813,1335.7,1335.6,2.42358561]
[1673433046436,2.04614813,1335.7,1335.6,3.54461947]
[1673433046660,2.27614813,1335.7,1335.6,2.42358561]
[1673433047067,2.27614813,1335.7,1335.6,3.54461947]
[1673433049311,2.27614813,1335.7,1335.6,2.42358561]
[1673433049638,2.27614813,1335.7,1335.6,3.54461947]
[1673433050367,4.77614813,1335.7,1335.6,3.54461947]
[1673433050532,4.77614813,1335.7,1335.6,2.42358561]
[1673433050742,2.27614813,1335.7,1335.6,3.54461947]
[1673433051535,2.27614813,1335.7,1335.6,2.42358561]
[1673433051846,2.27614813,1335.7,1335.6,3.54461947]
[1673433053682,2.27614813,1335.7,1335.6,11.03188947]
[1673433053936,2.27614813,1335.7,1335.6,11.09477586]
[1673433056161,2.27614813,1335.7,1335.6,3.60750586]
[1673433056370,2.27614813,1335.7,1335.6,3.54461947]
[1673433057086,2.27614813,1335.7,1335.6,5.2261728]
[1673433057429,2.27614813,1335.7,1335.6,5.28905919]
[1673433059363,2.27614813,1335.7,1335.6,4.16802533]
[1673433059735,2.27614813,1335.7,1335.6,11.59240894]
[1673433059933,2.27614813,1335.7,1335.6,11.65529533]
[1673433060634,2.27614813,1335.7,1335.6,12.77803524]
[1673433061471,2.27614813,1335.7,1335.6,11.65529533]
[1673433061683,0.23,1335.7,1335.6,33.29611459]
[1673433061940,13.39661732,1335.8,1335.6,34.40031593]
[1673433062115,3.86366064,1335.8,1335.7,3.54162859]
[1673433062364,4.02766064,1335.8,1335.7,18.51504859]
[1673433062547,4.02766064,1335.8,1335.7,30.45978399]
[1673433062760,0.066,1335.9,1335.7,39.82020033]
[1673433063014,14.51582051,1336.0,1335.8,3.5415126]
[1673433063175,17.19427796,1336.0,1335.9,1.85763445]
[1673433063386,18.31348115,1336.0,1335.9,1.85763445]
[1673433064226,18.31348115,1336.0,1335.9,2.42760193]
[1673433064683,18.54348115,1336.0,1335.9,0.56996748]
[1673433065802,18.54348115,1336.0,1335.9,0.56628258]
[1673433067515,17.42427796,1336.0,1335.9,0.56628258]
[1673433067736,18.54348115,1336.0,1335.9,0.56628258]
[1673433067907,26.02850115,1336.0,1335.9,0.56628258]
[1673433068126,18.54348115,1336.0,1335.9,0.56628258]
[1673433068865,26.02850115,1336.0,1335.9,0.56628258]
[1673433069695,18.54348115,1336.0,1335.9,0.56628258]
[1673433073525,17.42427796,1336.0,1335.9,0.56628258]
[1673433073752,13.39661732,1336.0,1335.9,11.58158585]
[1673433074052,13.39661732,1336.0,1335.9,4.15888224]
[1673433074272,13.39661732,1336.0,1335.9,4.09599585]
[1673433075480,11.41550872,1336.0,1335.9,4.09599585]
[1673433077293,11.41550872,1336.0,1335.9,2.23864276]
[1673433077689,11.41550872,1336.0,1335.9,4.09594956]
[1673433078476,11.41550872,1336.0,1335.9,2.23864276]
[1673433079280,11.41550872,1336.0,1335.9,4.09594656]
[1673433079817,11.41550872,1336.0,1335.9,2.23864276]
[1673433080969,11.41550872,1336.0,1335.9,4.09593469]
[1673433081168,11.41550872,1336.0,1335.9,2.23864276]
[1673433085279,11.41550872,1336.0,1335.9,0.56628258]
[1673433088884,11.41550872,1336.0,1335.9,2.42357432]
[1673433089055,11.41550872,1336.0,1335.9,9.90916432]
[1673433089267,11.41550872,1336.0,1335.9,9.97205071]
[1673433089506,11.41550872,1336.0,1335.9,2.48646071]
[1673433089704,11.41550872,1336.0,1335.9,2.42357432]
[1673433090319,11.41550872,1336.0,1335.9,9.90916432]
[1673433090535,11.41550872,1336.0,1335.9,12.85726553]
[1673433091159,11.41550872,1336.0,1335.9,12.85526553]
[1673433091370,11.41550872,1336.0,1335.9,2.48646071]
[1673433091574,11.41550872,1336.0,1335.9,2.42357432]
[1673433091896,11.41550872,1336.0,1335.9,9.90916432]
[1673433092103,11.41550872,1336.0,1335.9,9.97205071]
[1673433094103,11.41550872,1336.0,1335.9,8.11475897]
[1673433094317,11.41550872,1336.0,1335.9,9.97208986]
[1673433095176,11.41550872,1336.0,1335.9,9.97008986]
[1673433095392,11.41550872,1336.0,1335.9,9.97208986]
[1673433096403,9.43442121,1336.0,1335.9,9.97208986]
[1673433097399,9.43442121,1336.0,1335.9,2.48649986]
[1673433097616,9.43442121,1336.0,1335.9,2.42361347]
[1673433098798,9.43442121,1336.0,1335.9,11.03180626]
[1673433098964,9.43442121,1336.0,1335.9,13.86971673]
[1673433102368,9.43442121,1336.0,1335.9,6.38412673]
[1673433102686,9.43442121,1336.0,1335.9,3.60910265]
[1673433102999,9.43442121,1336.0,1335.9,2.42361347]
[1673433104217,9.43442121,1336.0,1335.9,3.54621626]
[1673433108576,9.43442121,1336.0,1335.9,2.42361347]
[1673433109156,9.43442121,1336.0,1335.9,3.54621626]
[1673433109825,10.5536244,1336.0,1335.9,2.42361347]
[1673433111195,10.5536244,1336.0,1335.9,3.54621626]
[1673433112826,10.5536244,1336.0,1335.9,3.84621626]
[1673433113874,10.5536244,1336.0,1335.9,11.33180626]
[1673433114088,9.43442121,1336.0,1335.9,3.90910265]
[1673433114299,9.43442121,1336.0,1335.9,3.84621626]
[1673433115132,10.5536244,1336.0,1335.9,3.84621626]
[1673433116551,9.43442121,1336.0,1335.9,3.84621626]
[1673433117176,10.55612258,1336.0,1335.9,3.84621626]
[1673433117370,9.43442121,1336.0,1335.9,3.84621626]
[1673433117996,9.43442121,1336.0,1335.9,5.53009441]
[1673433118187,9.43442121,1336.0,1335.9,5.5929808]
[1673433121269,9.43442121,1336.0,1335.9,3.90910265]
[1673433121526,9.43442121,1336.0,1335.9,3.84621626]
[1673433122524,10.55614948,1336.0,1335.9,3.84621626]
[1673433122782,10.5562378,1336.0,1335.9,3.84621626]
[1673433122994,9.43442121,1336.0,1335.9,3.84621626]
[1673433123248,10.55623721,1336.0,1335.9,3.84621626]
[1673433123465,10.55623553,1336.0,1335.9,3.84621626]
[1673433123623,10.5562346,1336.0,1335.9,3.84621626]
[1673433125624,10.55627977,1336.0,1335.9,3.84621626]
[1673433125837,9.43442121,1336.0,1335.9,3.84621626]
[1673433126094,10.55629061,1336.0,1335.9,3.84621626]
[1673433126257,9.43442121,1336.0,1335.9,3.84621626]
[1673433126489,10.55628692,1336.0,1335.9,3.84621626]
[1673433126778,10.55643448,1336.0,1335.9,3.84621626]
[1673433126995,9.43442121,1336.0,1335.9,3.84621626]
[1673433127214,10.55652106,1336.0,1335.9,3.84621626]
[1673433127429,10.55668487,1336.0,1335.9,3.84621626]
[1673433127778,10.55671026,1336.0,1335.9,3.84621626]
[1673433128089,9.43442121,1336.0,1335.9,3.84621626]
[1673433128300,10.5567191,1336.0,1335.9,3.84621626]
[1673433128454,9.43442121,1336.0,1335.9,3.84621626]
[1673433128658,10.55677768,1336.0,1335.9,3.84621626]
[1673433128872,9.43442121,1336.0,1335.9,3.84621626]
[1673433129210,10.55674506,1336.0,1335.9,3.84621626]
[1673433129402,10.55673706,1336.0,1335.9,3.84621626]
[1673433129630,10.55671657,1336.0,1335.9,3.84621626]
[1673433130060,10.50671657,1336.0,1335.9,3.84621626]
[1673433132676,9.38442121,1336.0,1335.9,3.84621626]
[1673433133474,10.50661781,1336.0,1335.9,3.84621626]
[1673433134956,9.38442121,1336.0,1335.9,3.84621626]
[1673433135159,10.50663823,1336.0,1335.9,3.84621626]
[1673433136426,9.38442121,1336.0,1335.9,3.84621626]
[1673433136858,9.38442121,1336.0,1335.9,5.53009441]
[1673433137198,9.38442121,1336.0,1335.9,5.5929808]
[1673433137576,9.38442121,1336.0,1335.9,5.5909808]
[1673433137788,9.38442121,1336.0,1335.9,5.5929808]
[1673433139088,0.066,1336.0,1335.9,5.5929808]
[1673433139301,16.86715428,1336.1,1335.9,5.5929808]
[1673433139518,20.66481492,1336.1,1336.0,1.85733089]
[1673433139679,20.89481492,1336.1,1336.0,1.85733089]
[1673433140308,19.21587766,1336.1,1336.0,1.85733089]
[1673433142404,20.89481492,1336.1,1336.0,1.85733089]
[1673433143931,19.21587766,1336.1,1336.0,1.85733089]
[1673433145875,19.21587766,1336.1,1336.0,2.97993368]
[1673433145876,5.21587766,1336.1,1336.0,2.97993368]
[1673433148766,4.09366064,1336.1,1336.0,2.97993368]
[1673433148921,4.02766064,1336.1,1336.0,2.97993368]
[1673433149131,0.23,1336.1,1336.0,4.29001017]
[1673433149454,0.066,1336.2,1336.0,7.08692072]
[1673433149811,0.066,1336.2,1336.1,2.97931435]
[1673433149812,3.79766064,1336.2,1336.1,2.97931435]
[1673433150023,4.02766064,1336.2,1336.1,2.97931435]
[1673433151246,4.02766064,1336.2,1336.1,1.85733089]
[1673433153969,5.14987766,1336.2,1336.1,1.85708075]
[1673433154171,5.21587766,1336.2,1336.1,1.85708075]
[1673433154386,4.09366064,1336.2,1336.1,1.85708075]
[1673433154638,4.02766064,1336.2,1336.1,1.85708075]
[1673433154963,5.14987766,1336.2,1336.1,1.85708075]
[1673433155281,4.09366064,1336.2,1336.1,1.85708075]
[1673433155468,4.02766064,1336.2,1336.1,1.85708075]
[1673433155854,4.02766064,1336.2,1336.0,2.51721786]
[1673433155855,5.14987766,1336.2,1336.0,2.51721786]
[1673433156064,5.21587766,1336.2,1336.0,2.45433147]
[1673433157848,4.09366064,1336.2,1336.1,1.85707819]
[1673433158111,4.02766064,1336.2,1336.1,1.85707819]
[1673433159958,4.02766064,1336.2,1336.1,1.85705602]
[1673433162373,5.14987766,1336.2,1336.0,0.08515791]
[1673433162591,5.21587766,1336.2,1336.0,0.02227152]
[1673433162789,12.69981766,1336.2,1336.0,0.02227152]
[1673433163677,5.14987766,1336.1,1335.9,0.86628258]
[1673433164004,19.06307064,1336.1,1335.9,3.84550622]
[1673433164232,20.18528766,1336.1,1335.9,0.86628258]
[1673433164519,11.57820064,1336.1,1335.9,1.98826604]
[1673433164739,11.57820064,1336.1,1335.9,3.84550914]
[1673433164902,11.57820064,1336.1,1335.9,1.98826604]
[1673433165478,12.70041766,1336.1,1335.9,1.98826604]
[1673433165638,4.09366064,1336.1,1336.0,1.85722309]
[1673433165854,6.52766064,1336.1,1336.0,1.85722309]
[1673433166077,6.59366064,1336.1,1336.0,1.85722309]
[1673433166293,6.59366064,1336.1,1335.9,2.05115243]
[1673433166631,4.09366064,1336.1,1335.9,1.98826604]
[1673433166787,4.02766064,1336.1,1336.0,1.85721973]
[1673433167319,4.02766064,1336.1,1336.0,1.85722709]
[1673433167527,6.52766064,1336.1,1336.0,1.85722709]
[1673433167779,6.59366064,1336.1,1336.0,1.85722709]
[1673433168026,4.09366064,1336.1,1336.0,1.85722709]
[1673433168203,4.02766064,1336.1,1336.0,1.85722709]
[1673433170402,7.64987766,1336.1,1335.9,2.05115243]
[1673433170721,7.71587766,1336.1,1335.9,1.98826604]
[1673433172468,7.71587766,1336.1,1336.0,1.85724228]
[1673433172881,9.39187766,1336.1,1336.0,1.85724228]
[1673433173197,9.39187766,1336.1,1335.9,2.05115243]
[1673433173408,9.39187766,1336.1,1335.9,1.98826604]
[1673433174279,9.39187766,1336.1,1336.0,1.85724197]
[1673433174889,6.89187766,1336.1,1336.0,1.85724197]
[1673433176717,14.37633766,1336.1,1336.0,1.85724197]
[1673433177714,14.37633766,1336.1,1336.0,1.85723233]
[1673433178138,6.89187766,1336.1,1336.0,1.85723233]
[1673433179737,14.37633766,1336.1,1336.0,1.85723233]
[1673433179953,14.37633766,1336.1,1335.9,2.05115243]
[1673433180129,3.79766064,1336.0,1335.9,1.98826604]
[1673433180341,4.02766064,1336.0,1335.9,3.84553826]
[1673433181849,4.02766064,1336.0,1335.9,2.7235548]
[1673433182022,4.02495354,1336.0,1335.9,2.7235548]
[1673433188275,11.50997354,1336.0,1335.9,2.7235548]
[1673433188595,4.09095354,1336.0,1335.9,2.7235548]
[1673433188753,4.02495354,1336.0,1335.9,2.7235548]
[1673433189797,11.50997354,1336.0,1335.9,2.7235548]
[1673433190007,4.09095354,1336.0,1335.9,2.7235548]
[1673433190261,4.02495354,1336.0,1335.9,2.7235548]
[1673433193911,18.02495354,1336.0,1335.9,2.7235548]
[1673433194107,45.31052186,1336.0,1335.9,0.86628258]
[1673433194318,37.82550186,1336.0,1335.9,0.86628258]
[1673433194556,38.94616244,1336.0,1335.9,0.86628258]
[1673433195645,46.4310587,1336.0,1335.9,0.86628258]
[1673433195811,46.9926587,1336.0,1335.9,0.86628258]
[1673433196021,51.67014186,1336.0,1335.9,0.86628258]
[1673433196232,55.04314186,1336.0,1335.9,0.86628258]
[1673433196693,8.5769952,1336.0,1335.9,0.86628258]
[1673433196863,4.09095354,1336.0,1335.9,2.81023609]
[1673433197079,4.02495354,1336.0,1335.9,0.86628258]
[1673433199016,4.02495354,1336.0,1335.9,2.72362875]
[1673433199848,2.04389296,1336.0,1335.9,10.20921875]
[1673433200181,2.04389296,1336.0,1335.9,10.27210514]
[1673433200806,0.23,1336.0,1335.9,17.75769514]
[1673433200980,0.23,1336.0,1335.9,27.29986848]
[1673433201189,0.23,1336.0,1335.9,28.42185194]
[1673433201403,0.23,1336.0,1335.9,27.29986848]
[1673433201649,0.23,1336.0,1335.9,28.42185194]
[1673433201857,16.86504166,1336.2,1335.9,28.42185194]
[1673433202076,18.98376504,1336.2,1336.0,1.85734617]
[1673433203222,20.6627023,1336.2,1336.0,1.85734617]
[1673433203955,18.98376504,1336.2,1336.0,9.34236617]
[1673433204168,18.98376504,1336.2,1336.0,7.54790639]
[1673433204342,18.98376504,1336.2,1336.0,0.06288639]
[1673433204556,20.6627023,1336.2,1336.0,7.48493]
[1673433204767,20.6627023,1336.2,1336.0,15.03283639]
[1673433205321,18.98376504,1336.2,1336.0,0.06288639]
[1673433205484,18.98376504,1336.2,1336.0,7.48485]
[1673433205692,18.98376504,1336.2,1336.0,7.54782639]
[1673433205953,18.98376504,1336.2,1336.0,15.03284639]
[1673433206566,0.23,1336.1,1336.0,15.03284639]
[1673433206777,0.23,1336.1,1336.0,16.89003253]
[1673433208999,0.23,1336.1,1336.0,16.88782485]
[1673433209381,0.23,1336.1,1336.0,1.91786485]
[1673433209608,0.23,1336.1,1336.0,1.85718614]
[1673433210153,0.23,1336.1,1336.0,9.34220614]
[1673433210472,0.23,1336.1,1336.0,9.40288485]
[1673433211154,0.23,1336.1,1336.0,1.91786485]
[1673433211372,0.23,1336.1,1336.0,1.85718614]
[1673433212119,0.23,1336.1,1336.0,16.82722614]
[1673433212352,0.23,1336.1,1336.0,16.88790485]
[1673433213891,0.23,1336.1,1336.0,9.40288485]
[1673433214131,4.02766064,1336.1,1336.0,16.88790485]
[1673433214352,4.58916064,1336.1,1336.0,16.88790485]
[1673433214565,4.58916064,1336.1,1336.0,24.37292485]
[1673433215836,4.58916064,1336.1,1336.0,16.88790485]
[1673433217259,4.58916064,1336.1,1336.0,24.37292485]
[1673433217678,0.7915,1336.1,1336.0,24.37292485]
[1673433217920,14.6275,1336.2,1336.0,28.64106574]
[1673433218129,18.42516064,1336.2,1336.1,1.85702439]
[1673433218345,18.65516064,1336.2,1336.1,24.31040439]
[1673433218556,18.65516064,1336.2,1336.1,24.3710831]
[1673433220615,18.65516064,1336.2,1336.1,24.37108117]
[1673433221081,18.65516064,1336.2,1336.1,7.54513871]
[1673433223867,18.65516064,1336.2,1336.1,0.06067871]
[1673433224084,18.65516064,1336.2,1335.9,18.847372]
[1673433224445,18.65516064,1336.2,1336.0,1.85707712]
[1673433227400,24.00852674,1336.2,1336.0,1.85707712]
[1673433227606,18.09366064,1336.2,1336.0,7.48495]
[1673433227787,18.09366064,1336.2,1336.0,0.06067871]
[1673433227995,18.09366064,1336.2,1335.9,17.01928475]
[1673433228246,18.65516064,1336.2,1336.0,1.85711962]
[1673433228558,18.65516064,1336.2,1336.0,9.34207962]
[1673433228767,18.65516064,1336.2,1336.0,22.51567871]
[1673433230455,18.65516064,1336.2,1336.0,23.63766217]
[1673433230956,18.65516064,1336.2,1336.0,22.51567871]
[1673433231395,18.65516064,1336.2,1336.0,23.63766217]
[1673433231620,18.65516064,1336.2,1336.0,22.51567871]
[1673433231769,18.65516064,1336.2,1336.0,23.63766217]
[1673433231979,18.65516064,1336.2,1336.0,22.51567871]
[1673433232522,18.65516064,1336.2,1336.0,23.63766217]
[1673433232939,3.79766064,1336.1,1336.0,15.03065871]
[1673433233251,3.79766064,1336.1,1336.0,16.88774816]
[1673433233252,2.04676522,1336.1,1336.0,16.88774816]
[1673433233467,2.04676522,1336.1,1336.0,24.37276816]
[1673433236499,2.04676522,1336.1,1336.0,18.00973162]
[1673433236711,2.04676522,1336.1,1336.0,16.88774816]
[1673433238545,2.04676522,1336.1,1336.0,18.00973162]
[1673433239266,2.04676522,1336.1,1336.0,24.37276816]
[1673433239450,2.04676522,1336.1,1336.0,16.88774816]
[1673433239909,2.04676522,1336.1,1336.0,18.00973162]
[1673433240304,2.04676522,1336.1,1336.0,25.49475162]
[1673433241401,2.04676522,1336.1,1336.0,18.00973162]
[1673433242193,2.04676522,1336.1,1336.0,25.49475162]
[1673433242440,2.04676522,1336.1,1336.0,27.17862977]
[1673433243594,2.04676522,1336.1,1336.0,28.2922815]
[1673433243800,0.23,1336.1,1336.0,32.91866644]
[1673433244016,14.066,1336.2,1336.0,35.70442111]
[1673433244192,17.86366064,1336.2,1336.1,2.9790218]
[1673433244405,18.09366064,1336.2,1336.1,17.9479418]
[1673433244657,18.09366064,1336.2,1336.1,18.00862051]
[1673433245085,18.09366064,1336.2,1336.1,25.49308051]
[1673433248499,18.09366064,1336.2,1336.1,27.17695866]
[1673433248744,18.09366064,1336.2,1336.1,25.49308051]
[1673433249779,4.09366064,1336.2,1336.1,25.49308051]
[1673433249988,4.02766064,1336.2,1336.1,25.49308051]
[1673433250429,4.02766064,1336.2,1336.1,28.44810189]
[1673433250642,4.02766064,1336.2,1336.1,31.23385656]
[1673433252968,0.23,1336.2,1336.1,31.23385656]
[1673433255224,0.23,1336.2,1336.1,23.74939656]
[1673433257695,0.23,1336.2,1336.1,31.23385656]
[1673433259815,0.23,1336.2,1336.1,23.74939656]
[1673433260030,0.23,1336.2,1336.1,28.44810189]
[1673433260188,0.23,1336.2,1336.1,31.23385656]
[1673433261670,0.23,1336.2,1336.1,5.82545518]
[1673433261880,0.23,1336.2,1336.1,3.03970051]
[1673433262127,0.23,1336.2,1336.1,2.9790218]
[1673433262505,0.23,1336.2,1336.1,10.4634818]
[1673433262711,0.23,1336.2,1336.1,10.52416051]
[1673433262924,0.23,1336.2,1336.1,18.00862051]
[1673433265173,0.23,1336.2,1336.1,18.00862051]
[1673433269687,0.23,1336.2,1336.1,25.49308051]
[1673433269903,0.23,1336.2,1336.1,33.15299266]
[1673433274215,0.232,1336.2,1336.1,33.15099266]
[1673433274422,0.23,1336.2,1336.1,33.15299266]
[1673433278631,0.23,1336.2,1336.1,34.83687081]
[1673433280514,0.23,1336.2,1336.1,33.71493846]
[1673433280515,0.22785299,1336.2,1336.1,33.71493846]
[1673433280731,40.86492855,1336.4,1336.1,33.71493846]
[1673433280732,1.12232615,1336.3,1336.1,33.71493846]
[1673433280937,4.91998679,1336.3,1336.2,2.97940621]
[1673433281185,4.91998679,1336.3,1336.2,17.94720621]
[1673433281394,4.91998679,1336.3,1336.2,18.00788492]
[1673433282356,3.79766064,1336.3,1336.2,25.49178492]
[1673433282514,5.14992195,1336.3,1336.2,25.49178492]
[1673433282723,5.21592262,1336.3,1336.2,25.49178492]
[1673433282983,5.21613696,1336.3,1336.2,25.49178492]
[1673433283144,5.2159706,1336.3,1336.2,25.49178492]
[1673433283360,4.09366064,1336.3,1336.2,25.49178492]
[1673433283571,5.14997088,1336.3,1336.2,25.49178492]
[1673433283782,4.09366064,1336.3,1336.2,25.49178492]
[1673433284019,5.14997183,1336.3,1336.2,25.49178492]
[1673433284237,4.09366064,1336.3,1336.2,25.49178492]
[1673433284411,5.14997191,1336.3,1336.2,25.49178492]
[1673433284627,5.21597223,1336.3,1336.2,25.49178492]
[1673433284877,3.94366064,1336.3,1336.2,25.49178492]
[1673433285070,3.87766064,1336.3,1336.2,25.49178492]
[1673433285298,3.01923729,1336.3,1336.2,25.49178492]
[1673433285515,1.89701317,1336.3,1336.2,25.49178492]
[1673433285665,1.89701317,1336.3,1336.2,29.40854752]
[1673433285879,3.01923729,1336.3,1336.2,32.19430219]
[1673433287156,1.89701317,1336.3,1336.2,32.19430219]
[1673433287565,3.01923729,1336.3,1336.2,32.19430219]
[1673433287782,1.89701317,1336.3,1336.2,32.19430219]
[1673433288083,3.01923729,1336.3,1336.2,32.19430219]
[1673433289186,1.89701317,1336.3,1336.2,32.19430219]
[1673433290235,3.01923729,1336.3,1336.2,32.19430219]
[1673433290604,1.89701317,1336.3,1336.2,32.19430219]
[1673433291914,1.89701317,1336.3,1336.2,33.87818034]
[1673433292131,0.2058168,1336.4,1336.2,39.38178216]
[1673433292303,0.0773288,1336.4,1336.3,32.16895793]
[1673433292555,0.0773288,1336.4,1336.3,33.33381834]
[1673433293126,0.0773288,1336.4,1336.3,32.77153478]
[1673433294270,0.0793288,1336.4,1336.3,32.76953478]
[1673433294488,0.0773288,1336.4,1336.3,32.77153478]
[1673433294859,0.0773288,1336.4,1336.3,33.89143552]
[1673433295099,0.0773288,1336.4,1336.3,33.89076437]
[1673433296217,0.0773288,1336.4,1336.3,32.21095064]
[1673433297487,0.0793288,1336.4,1336.3,32.20895064]
[1673433297698,0.0773288,1336.4,1336.3,33.89076437]
[1673433297959,8.8e-06,1336.4,1336.3,33.89076437]
[1673433298123,0.09303573,1336.5,1336.4,2.5]
[1673433298334,0.09303573,1336.5,1336.4,27.94450589]
[1673433298543,0.09303573,1336.5,1336.4,30.79093927]
[1673433300222,0.09303573,1336.5,1336.4,31.91016886]
[1673433304257,0.09303573,1336.5,1336.4,30.79093927]
[1673433305423,1e-08,1336.6,1336.4,30.79093927]
[1673433305730,1e-08,1336.6,1336.5,3.07909393]
[1673433305901,1e-08,1336.6,1336.5,25.52575393]
[1673433306112,1e-08,1336.6,1336.5,25.58643264]
[1673433308847,0.23000001,1336.6,1336.5,27.44273686]
[1673433309468,0.23000001,1336.6,1336.5,25.58643264]
[1673433310540,0.23000001,1336.6,1336.5,26.18326047]